Cogmind - Beta 16.1 @@@ ROGUE MODE // 2026.02.21 @ 23:48:33 Player: shockman27 Result: Destroyed by G-47 Trooper with Particle Gun Performance ------------- Evolutions (2) 1000 Regions Visited (6) 1200 Robots Destroyed (94) 470 Value Destroyed (2431) 2431 Prototype IDs (13) 260 Alien Tech Used (0) 0 Bonus (365) 365 TOTAL SCORE: 5726 Bonus ------- High Alert Combat Kills 99 Follower Combat Kills 66 Entered Garrisons 200 Cogmind --------- Core Integrity 0/550 Matter 57/300 Energy 100/100 System Corruption 3% Temperature Cool (56) Movement Core (1350) Ox26 Location -8/Garrison Parts ------- > --- POWER (1) -------- (None) > --- PROPULSION (3) --- (None) > --- UTILITY (5) ------ Huge Storage Unit > --- WEAPON (2) ------- (None) > --- INVENTORY (25) --- Micro Nuclear Core Wheel Wheel Cryofiber Web Structural Scanner Improved Sensor Array Improved Signal Interpreter Improved Terrain Scanner Transmission Jammer ECM Suite Insulated Plating System Shield System Shield Enhanced Autogun Enhanced Autogun Enhanced Autogun Enhanced Autogun Enhanced Autogun Enhanced Autogun Rocket Launcher Improved Datajack Maul Peak State ------------ > --- POWER ------------ Micro Nuclear Core > --- PROPULSION ------- Light Treads Wheel Compact Wheel > --- UTILITY ---------- Huge Storage Unit Advanced Terrain Scan Processor Hardened Medium Armor Plating Improved Light Armor Plating Hacking Suite > --- WEAPON ----------- Enhanced Autogun Enhanced Autogun > --- INVENTORY -------- Micro Nuclear Core Light Treads Improved Heat Sink Structural Scanner Advanced Visual Processing Unit Improved Sensor Array Improved Signal Interpreter Improved Terrain Scanner Seismic Detector Transmission Jammer ECM Suite System Shield Particle Cannon Particle Cannon Assault Rifle Light Assault Rifle Light Assault Rifle Heavy Assault Rifle Enhanced Autogun Enhanced Autogun Assault Cannon Rocket Launcher Improved Datajack Enhanced Flamer Maul [Rating: 35] Favorites ----------- Power Ion Engine Engine Ion Engine Power Core Micro Nuclear Core Propulsion Wheel Treads Light Treads Wheel Wheel Utility Seismic Detector Device Seismic Detector Storage Huge Storage Unit Processor Advanced Terrain Scan Processor Hackware Hacking Suite Protection Hardened Medium Armor Plating Weapon Enhanced Autogun Energy Gun EM Pulse Gun Energy Cannon Beam Cannon Ballistic Gun Enhanced Autogun Ballistic Cannon Light Cannon Launcher Grenade Launcher Special Weapon Enhanced Flamer Impact Weapon Maul Special Melee Weapon Datajack Build | -11 -10 -10 -10 -9 -8 -8 ------- Run | Yrd Mat Min Exi Min Mat Gar Slots Evolved 4 | . . . . . 4 . Power . | . . . . . . . Propulsion 1 | . . . . . 1 . Utility 3 | . . . . . 3 . Weapon . | . . . . . . . Parts Attached 69 | 7 14 7 3 2 32 4 Power 6 | 1 3 . . . 2 . Engine 4 | 1 3 . . . . . Core 2 | . . . . . 2 . Reactor . | . . . . . . . Propulsion 16 | 2 . 3 . 1 10 . Treads 5 | 2 . 1 . . 2 . Leg . | . . . . . . . Wheel 11 | . . 2 . 1 8 . Hover . | . . . . . . . Flight . | . . . . . . . Utility 21 | 2 2 2 2 . 11 2 Device 10 | 1 1 1 . . 5 2 Storage 4 | 1 1 1 1 . . . Processor 2 | . . . . . 2 . Hackware 1 | . . . . . 1 . Protection 4 | . . . 1 . 3 . Artifact . | . . . . . . . Weapon 26 | 2 9 2 1 1 9 2 Energy Gun 2 | . 1 . . . 1 . Energy Cannon 3 | . 1 . . . 2 . Ballistic Gun 9 | 2 1 1 1 1 2 1 Ballistic Cannon 2 | . 1 . . . 1 . Launcher 3 | . 1 . . . 2 . Special Weapon 3 | . 2 1 . . . . Impact Weapon 2 | . 1 . . . 1 . Slashing Weapon . | . . . . . . . Piercing Weapon . | . . . . . . . Special Melee Weapon 2 | . 1 . . . . 1 Unidentified Prototypes 1 | . . . . . 1 . Parts Lost 25 | . . 3 . . 10 12 Power 2 | . . 1 . . . 1 Propulsion 10 | . . 1 . . 5 4 Utility 8 | . . . . . 3 5 Weapon 5 | . . 1 . . 2 2 Highest Loss Streak 11 | . . 2 . . 3 11 To Critical Strikes . | . . . . . . . Average Backups 16 | 2 9 11 17 18 22 23 Power . | . . . 1 1 . 1 Propulsion 1 | . 1 . 1 1 1 2 Utility 5 | . . 2 7 7 7 10 Weapon 7 | . 5 5 7 7 10 8 Tool/Special . | . . . . . . . Unused Backups 25 | . 4 1 1 . 8 11 Power 3 | . 1 . . . 1 1 Propulsion 1 | . 1 . . . . . Utility 11 | . 1 . 1 . 2 7 Weapon 10 | . 1 1 . . 5 3 Tool/Special . | . . . . . . . Average Slot Usage (%) 96 | . 99 99 85 100 94 95 Engine 8 | . 14 14 14 14 . . Core 3 | . . . . . 8 8 Treads 10 | . 28 18 . . 2 1 Wheel 16 | . . 9 28 28 23 25 Device 12 | . 14 14 12 13 7 16 Storage 12 | . 14 14 14 14 8 9 Processor 1 | . . . . . 7 . Hackware 3 | . . . . . 8 8 Protection 3 | . . . . . 9 9 Energy Gun 2 | . . 5 1 12 1 . Energy Cannon 3 | . 7 1 . . 4 1 Ballistic Gun 11 | . 13 17 1 14 9 9 Ballistic Cannon 1 | . 2 . . . . . Impact Weapon 1 | . 2 . . . . 4 Special Melee Weapon 1 | . . . 12 . . . Peak Build Rating 35 | 7 8 11 10 11 35 33 Average Rating 15 | 5 7 9 8 9 27 27 On Entrance 11 | . 7 8 10 9 11 33 Avg Prop Armor Cover (%) 8 | . . 11 . . 6 8 Naked Turns . | . . . . . . . Heaviest Build 106 | 12 22 91 92 92 106 104 Greatest Support 42 | 40 40 40 20 26 42 36 Greatest Overweight (x) 5 | . . 4 4 4 4 5 Average Overweight (x) 1 | . . 1 2 3 2 2 Largest Inventory Capacity 25 | 8 10 25 25 25 25 25 Average Capacity 18 | 7 9 13 21 25 24 25 Most Carried 25 | 4 10 16 21 21 25 25 Average Carried 16 | 2 9 11 18 18 22 23 Final Capacity 25 | 8 10 25 25 25 25 25 Final Carried 25 | 4 10 16 16 21 25 22 Class Distribution -------------------- 61% | Scavenger-Mutant 38% | Mutant Dominant Class ---------------- Mutant | -10/Materials Scavenger-Mutant | -10/Mines Scavenger-Mutant | -10/Exiles Scavenger-Mutant | -9/Mines Scavenger-Mutant | -8/Materials Scavenger-Mutant | -8/Garrison Resources | -11 -10 -10 -10 -9 -8 -8 ----------- Run | Yrd Mat Min Exi Min Mat Gar Matter Collected 2896 | 288 513 219 . 242 1606 28 Remotely . | . . . . . . . Salvage Created 3320 | 115 636 230 . 120 1933 286 Parts 202 | 9 44 18 . 13 107 11 Haulers Intercepted 5 | . 2 . . . 3 . Recyclers Shooed 8 | . 1 1 . . 6 . Parts Field Recycled . | . . . . . . . Retrieved Matter . | . . . . . . . Parts Self-Destructed . | . . . . . . . Prevented . | . . . . . . . Parts Restored . | . . . . . . . Kills | -11 -10 -10 -10 -9 -8 -8 ------- Run | Yrd Mat Min Exi Min Mat Gar Combat Hostiles Destroyed 63 | . 12 7 . 8 34 2 Melee 2 | . . 1 . . 1 . Guns 25 | . 5 3 . 1 15 1 Cannons 15 | . 5 2 . . 7 1 AOE 21 | . 2 1 . 7 11 . Classes Destroyed 14 | 3 5 1 . . 5 . Worker 6 | 1 . . . . 5 . Builder 2 | . . . . . 2 . Tunneler 7 | 1 . 3 . 1 2 . Hauler 5 | . 2 . . . 3 . Recycler 5 | 1 1 . . . 3 . Operator 2 | . 2 . . . . . Watcher 6 | . 3 . . . 3 . Swarmer 19 | . 3 . . 8 8 . Grunt 31 | . 9 5 . . 16 1 Brawler 1 | . . . . . 1 . Duelist 2 | . . . . . 1 1 Sentry 6 | . . . . . 6 . Hunter 2 | . . . . . 2 . Assembled 2 | . . 2 . . . . Best Kill Streak 7 | 2 3 7 . 4 5 1 Combat Bots Only 5 | . 3 5 . 4 4 1 Max Kills in Single Turn 2 | 1 2 1 . 2 2 1 Gunslinging . | . . . . . . . Exploded 2 | . 2 1 . 2 2 . Melee 1 | . . 1 . . 1 . Uniques/NPCs Destroyed . | . . . . . . . Combat | -11 -10 -10 -10 -9 -8 -8 -------- Run | Yrd Mat Min Exi Min Mat Gar Hostile Shots Fired 352 | . 39 34 . 15 187 77 Missed 85 | . 8 8 . 3 46 20 Hits 267 | . 31 26 . 12 141 57 Melee 8 | . . 2 . . . 6 Projectile 259 | . 31 24 . 12 141 51 Critical Strikes 12 | . . . . 1 8 3 Damage Taken 3714 | . 362 378 . 155 1839 980 Core 713 | . 50 66 . 35 296 266 Absorbed by Shields . | . . . . . . . Redirected to Shielding 31 | . . . . . 31 . Regen/Repaired (Parts) 765 | . 110 . . . 655 . Core Remaining (%) 69 | 100 . . . 39 . . Volleys Fired 295 | 5 57 23 . 14 145 51 Largest 2 | 2 2 2 . 2 2 2 Hottest 136 | 40 100 103 . 60 136 136 Shots Fired 512 | 10 103 41 . 17 268 73 Gun 337 | 10 65 25 . 9 187 41 Cannon 128 | . 29 . . . 67 32 Launcher 24 | . 1 1 . 8 14 . Special 23 | . 8 15 . . . . Kinetic 346 | 10 77 24 . 6 188 41 Thermal 126 | . 23 15 . . 56 32 Explosive 24 | . 1 1 . 8 14 . Electromagnetic 16 | . 2 1 . 3 10 . Robot Hit Streak 13 | 8 8 13 . 8 11 12 Robot Miss Streak 5 | . 5 2 . 1 4 2 Penetration Max . | . . . . . . . Secondary Targets . | . . . . . . . Shots Hit Robots 341 | 8 59 30 5 9 175 55 Core Hits 158 | 4 32 18 . 11 80 13 Critical Kills 3 | . 2 . . . 1 . Critical Parts Destroyed 1 | . . 1 . . . . Critical Strikes 5 | . 2 2 . . 1 . Burn 1 | . . 1 . . . . Destroy 3 | . 2 . . . 1 . Smash 1 | . . 1 . . . . Melee Attacks 40 | . 11 3 5 . 10 11 Impact 30 | . 6 3 . . 10 11 Slashing . | . . . . . . . Piercing . | . . . . . . . Sneak Attacks 11 | . 5 . 5 . 1 . Combat Hostiles . | . . . . . . . Follow-up Attacks . | . . . . . . . Damage Inflicted 7182 | 98 836 534 . 581 4110 1023 Guns 3320 | 98 421 245 . 57 1970 529 Cannons 1789 | . 291 . . . 1004 494 Explosions 1656 | . 124 91 . 523 918 . Melee 286 | . . 68 . . 218 . Ramming 2 | . . 1 . 1 . . Kinetic 3504 | 98 521 230 . 17 2109 529 Thermal 1637 | . 161 129 . 72 781 494 Explosive 1584 | . 124 91 . 451 918 . Electromagnetic 169 | . 30 15 . 40 84 . Impact 286 | . . 68 . . 218 . Slashing . | . . . . . . . Piercing . | . . . . . . . Highest Corruption 3 | . 2 2 2 2 . 3 Average Corruption 2 | . 2 2 2 2 . 3 Corruption Purged . | . . . . . . . Corruption Blocked . | . . . . . . . Effects 43 | . 2 11 13 14 . 3 Message Errors 6 | . . 1 3 2 . . Matter Fused 14 | . . 3 4 5 . 2 Heat Flow Errors 5 | . . 3 1 . . 1 Energy Discharges 6 | . . 1 2 3 . . Data Loss (minor) 9 | . 1 2 2 4 . . Data Loss (major) 1 | . . . 1 . . . Misfires 1 | . 1 . . . . . Alerts 1 | . . 1 . . . . Overload Shots . | . . . . . . . Overflow Damage 237 | . . 35 . 89 113 . Projectiles 22 | . . . . . 22 . Explosions 94 | . . . . 89 5 . Melee 121 | . . 35 . . 86 . Knockbacks 4 | . 2 . . . 2 . Impact . | . . . . . . . Kinetic 3 | . 2 . . . 1 . Secondary 1 | . . . . . 1 . Self-Inflicted Damage 64 | . . . . 64 . . Shots 3 | . . . . 3 . . Rammed 3 | . . 2 . 1 . . Targets Rammed 3 | . . 2 . 1 . . Kicked . | . . . . . . . Crushed . | . . . . . . . Highest Temperature 464 | . 249 221 245 12 273 464 Average Temperature 70 | . 56 89 125 12 60 95 Received Heat Transfer 1575 | . 189 126 . . 756 504 Effects 2 | . . . . . . 2 Interference 2 | . . . . . . 2 Siege Activations . | . . . . . . . Martial Activations . | . . . . . . . Shielding Activations . | . . . . . . . Robots Disrupted . | . . . . . . . Combat Hostiles . | . . . . . . . Robots Corrupted 1 | . . . . . 1 . Combat Hostiles . | . . . . . . . Parts Fried 4 | . . . . . 4 . Impact Corruptions 5 | . . 1 . . 4 . Robots Melted . | . . . . . . . Combat Hostiles . | . . . . . . . Parts Melted 9 | . . 2 . . 4 3 Heat Transferred 3713 | . 333 1040 . 50 1480 810 Parts Sabotaged . | . . . . . . . Parts Stolen . | . . . . . . . Parts Stripped . | . . . . . . . Power Chain Reactions 2 | . . . . 2 . . Alert | -11 -10 -10 -10 -9 -8 -8 ------- Run | Yrd Mat Min Exi Min Mat Gar Maximum Alert Level 2 | . . . . . 2 2 Low Security (%) 79 | 100 100 100 . 100 67 . Level 1 3 | . . . . . 10 5 Level 2 16 | . . . . . 22 94 Level 3 . | . . . . . . . Level 4 . | . . . . . . . Level 5 . | . . . . . . . High Security . | . . . . . . . Max Security . | . . . . . . . Peak Influence 594 | 5 106 84 . 191 594 582 Initial 382 | . 3 36 . . 3 382 Average 120 | . 28 13 . 76 168 459 Influence Increases 2413 | 15 472 176 . 277 1243 230 Destroy 0b10 Robot/C 1260 | . 240 140 . 160 680 40 Destroy 0b10 Robot/NC 195 | 15 40 15 . 15 90 20 Destroy Leader 242 | . 70 . . 20 152 . Allied During Kill 14 | . . 14 . . . . Trap Triggered on 0b10 30 | . . . . . . 30 Successful Hack 31 | . 19 . . . 12 . Select Force Hacks 60 | . 60 . . . . . Disable Machine 255 | . 30 . . 45 105 75 Destroy Structure 146 | . 13 7 . 37 84 5 Lose Combat Pursuer 180 | . . . . . 120 60 Influence Decreases 1921 | 10 384 269 . 268 664 326 Entered New Map 271 | . 2 57 . . 6 206 Time Decay 1312 | 10 382 182 . 268 470 . Lost Part 230 | . . 30 . . 80 120 Purge Threat 108 | . . . . . 108 . Squads Dispatched 8 | . 4 . . . 4 . Investigation 4 | . 2 . . . 2 . Extermination . | . . . . . . . Reinforcement 3 | . 2 . . . 1 . Assault 1 | . . . . . 1 . Garrison . | . . . . . . . Intercept . | . . . . . . . Searches Triggered . | . . . . . . . Construction Impeded 1 | . . . . . 1 . Haulers Reinforced . | . . . . . . . Active Scanning Responses . | . . . . . . . Cargo Convoy Interrupts . | . . . . . . . Stealth | -11 -10 -10 -10 -9 -8 -8 --------- Run | Yrd Mat Min Exi Min Mat Gar Distress Signals 7 | . 1 . . . 6 . Communications Jammed . | . . . . . . . Distress Signals . | . . . . . . . Times Spotted 91 | . 19 11 . 6 49 6 Peak Tracking Total 8 | . 4 4 . 4 5 8 Tactical Retreats 6 | . . . . . 5 1 Traps | -11 -10 -10 -10 -9 -8 -8 ------- Run | Yrd Mat Min Exi Min Mat Gar Traps Triggered 5 | . 1 . . . 1 3 Indirectly . | . . . . . . . Trap Hack Attempts 42 | . . . . . . 42 Triggered . | . . . . . . . Disarmed 3 | . 3 . . . . . Reprogrammed 3 | . . . . . . 3 Reused 3 | . . . . . . 3 Traps Extracted . | . . . . . . . Installed . | . . . . . . . Triggered 3 | . . . . . . 3 Machines | -11 -10 -10 -10 -9 -8 -8 ---------- Run | Yrd Mat Min Exi Min Mat Gar Machines Disabled 17 | . 2 . . 3 7 5 Max in Single Turn 2 | . 1 . . 2 1 1 Machines Repaired . | . . . . . . . Machines Dismantled . | . . . . . . . Machines Sabotaged . | . . . . . . . Overloaded Fab Kills . | . . . . . . . Hacking | -11 -10 -10 -10 -9 -8 -8 --------- Run | Yrd Mat Min Exi Min Mat Gar Machines Accessed 21 | . 8 . 4 . 9 . Terminals 9 | . 5 . . . 4 . Fabricators . | . . . . . . . Repair Stations 3 | . 1 . . . 2 . Recycling Units 2 | . 2 . . . . . Scanalyzers 2 | . . . . . 2 . Garrison Access 1 | . . . . . 1 . Total Hacks 81 | . 31 . 13 . 37 . Successful 61 | . 19 . 13 . 29 . Failed 19 | . 12 . . . 7 . Catastrophic . | . . . . . . . Database Lockouts 1 | . . . . . 1 . Manual 30 | . 20 . . . 10 . Terminals 32 | . 21 . . . 11 . Fabricators . | . . . . . . . Repair Stations 18 | . 8 . . . 10 . Recycling Units 2 | . 2 . . . . . Scanalyzers 15 | . . . . . 15 . Garrison Access 1 | . . . . . 1 . Terminal Hacks 22 | . 7 . 13 . 2 . Record 13 | . . . 13 . . . Robot Analysis 4 | . 3 . . . 1 . Branch Access Points 1 | . 1 . . . . . Alert Level 1 | . 1 . . . . . Unreport Threat 1 | . . . . . 1 . Locate Traps 1 | . 1 . . . . . Disarm Traps 1 | . 1 . . . . . Fabricator Hacks . | . . . . . . . Repair Station Hacks 15 | . 7 . . . 8 . Scan Component 8 | . 4 . . . 4 . Repair 7 | . 3 . . . 4 . Recycling Unit Hacks . | . . . . . . . Scanalyzer 14 | . . . . . 14 . Insert Component 6 | . . . . . 6 . Analyze 5 | . . . . . 5 . Retrieve Study 3 | . . . . . 3 . Garrison Access Hacks 1 | . . . . . 1 . Unlock Access 1 | . . . . . 1 . Unauthorized Hacks 9 | . 5 . . . 4 . Terminals 7 | . 3 . . . 4 . Botnet 6 | . 3 . . . 3 . Operators 1 | . . . . . 1 . Fabricators . | . . . . . . . Repair Stations . | . . . . . . . Recycling Units 2 | . 2 . . . . . Tunnel 2 | . 2 . . . . . Scanalyzers . | . . . . . . . Garrison Access . | . . . . . . . Data Cores Recovered . | . . . . . . . Used . | . . . . . . . Hacking Detections 13 | . 6 . . . 7 . Full Trace Events 1 | . . . . . 1 . Feedback Events . | . . . . . . . Feedback Blocked . | . . . . . . . Robot Schematics Acquired . | . . . . . . . Robots Built . | . . . . . . . Authchips . | . . . . . . . Time . | . . . . . . . Total Robot Build Rating . | . . . . . . . Part Schematics Acquired 5 | . . . . . 5 . Parts Built . | . . . . . . . Authchips . | . . . . . . . Time . | . . . . . . . Total Part Build Rating . | . . . . . . . Part Studies Acquired 3 | . . . . . 3 . Parts Repaired 7 | . 3 . . . 4 . Time 214 | . 88 . . . 126 . Parts Recycled . | . . . . . . . Recycled Matter . | . . . . . . . Retrieved Matter . | . . . . . . . Retrieved Components . | . . . . . . . Parts Scanalyzed 5 | . . . . . 5 . Part Schematics Acquired 5 | . . . . . 5 . Parts Damaged 1 | . . . . . 1 . Bothacking | -11 -10 -10 -10 -9 -8 -8 ------------ Run | Yrd Mat Min Exi Min Mat Gar Used RIF Installer . | . . . . . . . Robots Hacked 7 | . 4 . 3 . . . Non-combat 6 | . 4 . 2 . . . Combat 1 | . . . 1 . . . Robot Hacks Applied 9 | . 5 . 4 . . . parse_system 8 | . 4 . 4 . . . find_recycling 1 | . 1 . . . . . Relay Couplers Released . | . . . . . . . Fabnet Peak Effective % . | . . . . . . . Robots Rewired . | . . . . . . . Allies Hacked . | . . . . . . . Hacks Repelled . | . . . . . . . Allies | -11 -10 -10 -10 -9 -8 -8 -------- Run | Yrd Mat Min Exi Min Mat Gar Total Allies 5 | . . 5 . . . . Largest Group 5 | . . 5 2 . . . Highest-Rated Group 81 | . . 81 41 . . . Highest-Rated Ally 31 | . . 31 31 . . . Total Orders . | . . . . . . . Ally Attacks 14 | . . 14 . . . . Total Damage 172 | . . 172 . . . . Kills 2 | . . 2 . . . . Allies Corrupted . | . . . . . . . Allies Melted . | . . . . . . . Intel | -11 -10 -10 -10 -9 -8 -8 ------- Run | Yrd Mat Min Exi Min Mat Gar Active Infowar (turns) 6749 | 36 1874 1173 818 816 1307 725 Optics 389 | . . . . . 389 . Sensors 144 | . . . . . 143 1 Terrain 481 | . . . . . 481 . Structural 506 | . . . . . . 506 Seismic 6333 | 36 1874 1173 818 816 891 725 Robot Analysis Total 4 | . 3 . . . 1 . Derelict Logs Recovered 2 | . . 1 . 1 . . Drone Launches . | . . . . . . . Drone Recoveries . | . . . . . . . Exploration | -11 -10 -10 -10 -9 -8 -8 ------------- Run | Yrd Mat Min Exi Min Mat Gar Turns Passed 7634 | 129 1874 1173 896 823 1996 743 Spaces Moved 4233 | 65 963 704 738 572 1028 163 Core 2 | 2 . . . . . . Treads 1379 | 63 963 353 . . . . Legs . | . . . . . . . Wheels 2852 | . . 351 738 572 1028 163 Hover . | . . . . . . . Flight . | . . . . . . . Fastest Speed 50 | 50 160 95 110 135 80 110 Average Speed 135 | 156 160 144 118 135 119 114 Slowest Speed 240 | 160 160 240 140 140 140 145 Overloaded Moves . | . . . . . . . Propulsion Burnouts . | . . . . . . . Robots Hopped . | . . . . . . . Potential Cave-ins . | . . . . . . . Cave-ins Triggered . | . . . . . . . Exploration Rate (%) 68 | 5 99 99 92 98 65 23 Regions Visited 6 Branch Regions 3 Pre-discovered Areas 4 | . 2 . 1 1 . . Known Exits Taken 3 | . 1 . . 1 1 . Unknown Exits Taken 3 | 1 . 1 1 . . . Scrap Searched 4 | . . 2 . 2 . . Spaces Dug 18 | . 5 . . 8 5 . Terrain Destroyed 155 | . 12 7 . 47 89 . Melee 9 | . 4 . . . 5 . Projectile 3 | . 1 . . . 2 . AOE 143 | . 7 7 . 47 82 . Terrain Rammed . | . . . . . . . Walls Destroyed . | . . . . . . . Machines Disabled . | . . . . . . . Actions | -11 -10 -10 -10 -9 -8 -8 --------- Run | Yrd Mat Min Exi Min Mat Gar Total 5631 | 80 1181 804 761 600 1570 635 Wait 672 | . 105 42 . . 197 328 Move 4227 | 64 962 703 737 571 1027 163 Hop . | . . . . . . . Pick Up 108 | 4 14 10 1 5 74 . Fast Attach 17 | 7 1 1 2 . 6 . Attach 23 | . . 2 4 . 14 3 Detach 10 | . . . 5 . 4 1 Swap 100 | . 20 11 4 8 45 12 Drop 69 | . 11 6 3 1 48 . Fire 295 | 5 57 23 . 14 145 51 Melee 40 | . 11 3 5 . 10 11 Ram 1 | . . . . 1 . . Kick . | . . . . . . . Crush 2 | . . 2 . . . . Escape Stasis 24 | . . . . . . 24 Rewire 1 | . . 1 . . . . Trap 42 | . . . . . . 42 Miscellaneous . | . . . . . . . Route ------- -11/Scrapyard -10/Materials (discovered 6 exits: [*Mat x3] / *Min x2 / [*Sub]) -10/Mines (discovered 4 exits: [*Mat x2] / *Exi / [*Sub]) -10/Exiles (discovered 2 exits: [*Min x2]) -9/Mines (discovered 2 exits: *Mat x2) -8/Materials (discovered 4 exits: [*Fac x2] / [*Sto] / Gar) -8/Garrison History --------- Turn | Location | Event 50 | -11/Scrapyard | Discovered new exit (range 14) 130 | -11/Scrapyard | Entered Materials 320 | -10/Materials | Build established: Mutant 577 | -10/Materials | Discovered new exit (range 7) 615 | -10/Materials | Discovered new exit (range 11) 901 | -10/Materials | Discovered new exit (range 6) 944 | -10/Materials | Discovered new exit (range 15) 980 | -10/Materials | Discovered new exit (range 8) 1101 | -10/Materials | Identified exit to Mines 1187 | -10/Materials | Discovered new exit (range 15) 1506 | -10/Materials | Repaired Ion Engine 1543 | -10/Materials | Repaired Broken Beam Cannon 1570 | -10/Materials | Repaired Lgt. Cannon 2004 | -10/Materials | Entered Mines 2150 | -10/Mines | Learned Materials garrison access intel 2202 | -10/Mines | Deemed a non-threat by the Exiles lab entrance 2202 | -10/Mines | Discovered new exit (range 5) 2379 | -10/Mines | A weapon hastily lodged in a ceiling crevice suddenly fell to the ground 2422 | -10/Mines | Assisted by bots powering up and referring to "LRC-V3" 2446 | -10/Mines | Discovered new exit (range 6) 2575 | -10/Mines | Build established: Scavenger-Mutant 2594 | -10/Mines | Excavation squad dispatched 2594 | -10/Mines | A large section of the Mines collapsed 2638 | -10/Mines | Lost 3 allies 2655 | -10/Mines | Discovered new exit (range 14) 2745 | -10/Mines | Discovered new exit (range 11) 2945 | -10/Mines | Found DCF Scrap (14 items) 3177 | -10/Mines | Entered Exiles 3177 | -10/Exiles | Accompanied by 2 allies 3197 | -10/Exiles | Discovered new exit (range 15) 3207 | -10/Exiles | Led the pair of lost Derelicts to a safe place 3240 | -10/Exiles | Met 8R-AWN 3268 | -10/Exiles | Met EX-HEX 3402 | -10/Exiles | Met EX-DEC 3421 | -10/Exiles | Visited The Gauntlet 3566 | -10/Exiles | Learned location of Zion (-7) 3676 | -10/Exiles | Discovered new exit (range 11) 3750 | -10/Exiles | Met EX-BIN 4073 | -10/Exiles | Entered Mines 4074 | -9/Mines | Learned location of Storage (-8) 4196 | -9/Mines | Core integrity fell below 50% 4294 | -9/Mines | Discovered new exit (range 16) 4422 | -9/Mines | Identified exit to Materials 4796 | -9/Mines | Received a Rocket Launcher from a helpful Derelict 4896 | -9/Mines | Entered Materials 4896 | -8/Materials | Evolved 4 slots: Propulsion x1, Utility x3 4897 | -8/Materials | Loaded intel: 1 garrison access location 5217 | -8/Materials | Lost 3 parts (1n2u) 5511 | -8/Materials | Repaired Huge Storage Unit 5621 | -8/Materials | Repaired Broken Seismic Detector 5661 | -8/Materials | Repaired Assault Cannon 5715 | -8/Materials | Discovered new exit (range 9) 5803 | -8/Materials | Discovered new exit (range 8) 6065 | -8/Materials | Discovered new exit (range 16) 6102 | -8/Materials | Central database locked down 6496 | -8/Materials | First assault squad dispatched 6532 | -8/Materials | Build established: Mutant 6609 | -8/Materials | Repaired Broken Imp. Datajack+ 6626 | -8/Materials | Core integrity fell below 50% 6891 | -8/Materials | Identified exit to Garrison 6892 | -8/Materials | Entered Garrison 7022 | -8/Garrison | Build established: Scavenger-Mutant 7398 | -8/Garrison | Triggered checkpoint 7616 | -8/Garrison | Core integrity fell below 20% 7635 | -8/Garrison | Destroyed by G-47 Trooper with Particle Gun Last Messages --------------- 07572_ Katana melted. 07572_ Melee Analysis Suite melted. 07572_ L-31 Rogue destroyed. 07577_ Mic. Nuclear Core destroyed. 07581_ Hacking Suite destroyed. 07581_ System corrupted by crushing effect (+3). 07591_ System corrupted: Matter fused (-7). 07595_ Imp. Heat Sink destroyed. 07603_ Wheel+ destroyed. 07605_ Critical hit (Burn: +37). 07611_ Lgt. Treads destroyed. 07613_ System corrupted: Heat flow error (+160). 07617_ Overheating: System interference. 07617_ Particle Cannon temporarily disabled. 07617_ Seismic Detector temporarily disabled. 07619_ Imp. Light Armor Plating destroyed. 07623_ Wheel+ destroyed. 07625_ Particle Cannon destroyed. 07629_ Seismic Detector destroyed. 07634_ System corrupted: Matter fused (-10). Map ----- +----------------------------------------------------+ | ?????????????????????????????????????????????????? | | ?????????????????????????????????????????????????? | | ?????????????????????????????????????????????????? | | ?????????????????????????????????????????????????? | | ??????????????????????????????# ????##########??? | | ?????????????????????????????? ??#"" " ""#? | | ?????????????????????????????? #?#&&" " "&&#? | | ?????????????????????????????? #?#&&" "" " "&&#? | | ??????????????????????????????# #?#"" ^ "" #? | | ??????????????????????????????# #?# ^^! #? | | ??????????????????????????????# #?#" " =%!% " #? | | ??????????????????????????????# #?#&&" ####&" #? | | ??????????????????????????????# #?#&&"&&%&!&" #? | | ??????????????????????????????" #?#"" &&&%^ ""#? | | ??????????????????????????????" #?# *!&&& #? | | ??????????????????????????????" #?#### & ####? | | ??????????????????????????????# #????## ####???? | | ????????????????????########### ####### ######## | | ????????????????????# | | ????????????????????# | | ????????????????????# ! | | ????????????????????# #######%+################# | | ????????????????????# ^ #?????#= #???????????????? | | ????????????????????# ^^#?????# #???????????????? | | ????????????????????# ####### #???????????????? | | ????????????????????# g@ g #???????????????? | | ????????????????????# ####### #???????????????? | | ??????????????#?????#* #?????# #???????????????? | | ?????????????## ##%= #?????# #???????????????? | | ?????????# [ #?????# #???????????????? | | ?????? #????? #???????????????? | | ?????? #????? #???????????????? | | ???????### ## ## #?????####???????????????? | | ?????????#????# ?# #????????????????????????? | | ????????????? ?? ????????????????????????? | | ??????????? ?? ????????????????????????? | | ?????????? ??? ????????????????????????? | | ?????????" ???? ???????????????????????? | | ?????????# ## ????# ##???????????????????????? | | ?????????? ?#?????? #????????????????????????? | | ?????????? ?????????? ????????????????????????? | | ????????????????????? ????????????????????????? | | ????????????????????? #????????????????????????? | | ????????????????????? ##????????????????????????? | | ????????????????????? ??????????????????????????? | | ?????????????????????????????????????????????????? | | ?????????????????????????????????????????????????? | | ?????????????????????????????????????????????????? | | ?????????????????????????????????????????????????? | | ?????????????????????????????????????????????????? | +----------------------------------------------------+ Best States ------------- Heat Dissipation 45 Energy Generation 15 Energy Capacity 250 Matter Stores 300 Matter Capacity 300 Sight Range 20 Robot Scan Range 14 Terrain Scan Range 16 Terrain Scan Density 210 Armor Coverage 375 Propulsion Shielding 33 Evasion (%) 44 Recoil Reduction 2 Offensive Hacking 10 Item Schematics ----------------- Enh. Autogun | -8/Materials | Scanalyzed Imp. Datajack | -8/Materials | Scanalyzed Imp. Sensor Array | -8/Materials | Scanalyzed Imp. Signal Interpreter | -8/Materials | Scanalyzed System Shield | -8/Materials | Scanalyzed Robot Schematics ------------------ None Fabricated ------------ Nothing Repaired ---------- Ion Engine | 46% | -10/Materials Beam Cannon | 43% | -10/Materials | Broken Lgt. Cannon | 82% | -10/Materials Huge Storage Unit | 12% | -8/Materials Seismic Detector | 99% | -8/Materials | Broken Assault Cannon | 15% | -8/Materials Imp. Datajack | 99% | -8/Materials | Broken Studied --------- Rocket Launcher | -8/Materials | Hacked Imp. Datajack | -8/Materials | Hacked Wheel | -8/Materials | Hacked Alien Tech Used ----------------- None Achievements -------------- Omniscient Cartographer Challenges ------------ None Game ------ Seed TiamatTitaniumProtomatter Manual? 0 Play Time 01:09:51 Cumulative 177.4 hours Start 2026.02.21 @ 19:51:07 End 2026.02.21 @ 23:48:33 Sessions 5 Manual Loads 0 Difficulty Rogue Special Mode None Game No. 105 Rogue 101 Adventurer 4 Explorer 0 Win Type - Total 3 Types 2/0/0/1/0/0/0/0/0/0 Lore% 69 Gallery% 58 Achievement% 37 Wizard Run 0 Options --------- Layout 0 ASCII 0 Keyboard 1 Movement Vi Keybinds 0 Fullscreen 1 Font 24/Smallcaps Map View 76x50 Zoom Use 1% Tactical HUD 1 Map Filters NONE Filters NONE Steam 1 RUN: 8001800c-0b1c-4388-803c-cb602f949ee0